fUSD/lending_fUSD_20260409
["ID","MTS","AMOUNT","RATE_DAILY","PERIOD"]
[420159032,1775735483864,-447.68589164,0.00015,2]
[420159033,1775735484159,-9092.578589,0.00014394,2]
[420159034,1775735484169,-151.0,0.00014394,2]
[420159035,1775735484179,-6417.956568,0.00014394,2]
[420159036,1775735484190,-9092.578589,0.00014394,2]
[420159037,1775735484200,-8644.89269736,0.00015,2]
[420159038,1775735484210,-151.0,0.00015,2]
[420159039,1775735484220,-9092.578589,0.00015,2]
[420159040,1775735484230,-151.0,0.00015,2]
[420159041,1775735484240,-6417.956568,0.00015,2]
[420159042,1775735484251,-171.867948,0.00015041,2]
[420159043,1775735484261,-714.675199,0.00015416,2]
[420159044,1775735484271,-9092.578589,0.00015416,2]
[420159045,1775735484281,-151.0,0.00015416,2]
[420159046,1775735484291,-9092.578589,0.00015416,2]
[420159047,1775735484301,-151.0,0.00015416,2]
[420159048,1775735484312,-171.867948,0.00015422,2]
[420159049,1775735484324,-171.867948,0.00015422,2]
[420159050,1775735484335,-309.74917144,0.00015453,2]
[420159051,1775735484350,-714.675199,0.00015468,2]
[420159052,1775735484361,-9092.578589,0.00015468,2]
[420159053,1775735484371,-151.0,0.00015468,2]
[420159054,1775735484382,-9092.578589,0.00015468,2]
[420159055,1775735484393,-151.0,0.00015468,2]
[420159056,1775735484405,-994.79610485,0.00015553,2]
[420159057,1775735484415,-171.867948,0.00015553,2]
[420159058,1775735484426,-714.675192,0.00015553,2]
[420159059,1775735484437,-9092.578589,0.00015553,2]
[420159060,1775735484448,-151.0,0.00015553,2]
[420159061,1775735484459,-171.867953,0.00015553,2]
[420159062,1775735484469,-9092.578589,0.00015553,2]
[420159063,1775735484480,-151.0,0.00015553,2]
[420159064,1775735484490,-710722.86604923,0.000156,2]
[420159065,1775735484529,-151.0,0.00014394,2]
[420159066,1775735484540,-6417.956568,0.00015416,2]
[420159067,1775735484550,-69979.89310054,0.000156,2]
[420159068,1775735484563,-1089.35,0.000156,2]
[420159069,1775735958155,-200.0,0.000108,3]
[420159070,1775735958179,-250.0,0.0001085,2]
[420159071,1775735958203,-400.0,0.000109,3]
[420159072,1775735958228,-190.89359925,0.0001106,2]
[420159073,1775735958252,-195.0,0.00011187,2]
[420159074,1775735958275,-166.27771029,0.00011187,2]
[420159075,1775735958299,-300.0,0.00011206,2]
[420159076,1775735958321,-600.0,0.00011207,2]
[420159077,1775735958345,-600.0,0.00011207,2]
[420159078,1775735958368,-600.0,0.00011207,2]
[420159079,1775735958392,-600.0,0.00011207,2]
[420159080,1775735958416,-10171.6737,0.00011381,2]
[420159081,1775735958439,-500.0,0.00011473,2]
[420159082,1775735958465,-150.0,0.00011479,2]
[420159083,1775735958490,-1200.0,0.0001148,2]
[420159084,1775735958514,-300.0,0.0001148,2]
[420159085,1775735958538,-262.3808947,0.0001148,2]
[420159086,1775735958561,-4341.16201564,0.00011481,2]
[420159087,1775735958584,-364.57280449,0.00011481,2]
[420159088,1775735958608,-2764.79944721,0.00011481,2]
[420159089,1775735958635,-116564.23982842,0.00011481,2]
[420159099,1775736356138,-433.09054409,0.00010642,2]
[420159100,1775736432471,-5462.27945591,0.00010642,2]
[420159101,1775736432506,-250.0,0.0001065,2]
[420159102,1775736432542,-5000.0,0.00010657,2]
[420159103,1775736432576,-2000.0,0.00010673,2]
[420159104,1775736432611,-500.0,0.0001069,2]
[420159105,1775736432645,-4050.9327718,0.00010711,2]
[420159106,1775736432679,-500.0,0.00010714,2]
[420159107,1775736432712,-218.19,0.00010837,2]
[420159108,1775736432746,-500.0,0.00011273,2]
[420159109,1775736432781,-300.0,0.00011279,2]
[420159110,1775736432815,-150.0,0.0001128,2]
[420159111,1775736432849,-3723.51178,0.0001128,2]
[420159112,1775736432882,-625.23520736,0.0001128,2]
[420159113,1775736432921,-500.0,0.0001128,2]
[420159114,1775736432960,-583.82078043,0.0001128,2]
[420159115,1775736432999,-500.0,0.0001128,2]
[420159116,1775736433040,-500.0,0.0001128,2]
[420159117,1775736433081,-500.0,0.0001128,2]
[420159118,1775736433124,-500.0,0.0001128,2]
[420159119,1775736433166,-500.0,0.0001128,2]
[420159120,1775736433209,-500.0,0.0001128,2]
[420159121,1775736433245,-432.95047417,0.0001128,2]
[420159122,1775736433284,-1672203.07953033,0.00011281,2]
[420159123,1775736434851,700.0,0.000106,3]
[420159125,1775736463132,973.00372848,8e-05,2]
[420159126,1775736463166,7166.98383554,8e-05,2]
[420159127,1775736486061,166.0,8e-05,3]
[420159129,1775736546017,-980.0,0.000107,3]
[420159130,1775736547210,166.0,8e-05,3]
[420159139,1775736635707,-0.77331563,0.0001,2]
[420159140,1775736635719,-1977.40295993,0.0001,2]
[420159141,1775736635729,-1601.63514347,0.00010673,2]
[420159142,1775736635815,-501.96470697,0.00010673,2]
[420159145,1775736635827,-657.62014956,0.00010673,2]
[420159147,1775736635837,-420.0,0.000107,3]
[420159149,1775736635846,-9510.33520856,0.000107,2]
[420159151,1775736635856,-2100.0,0.000108,3]
[420159158,1775736636203,-300.0,0.000108,3]
[420159159,1775736636222,-1200.0,0.00010898,2]
[420159160,1775736636232,-1200.0,0.00010899,2]
[420159161,1775736636242,-2800.0,0.000109,3]
[420159162,1775736636252,-600.0,0.000109,3]
[420159163,1775736636287,-12388.8285885,0.0001128,2]
[420159164,1775736636297,-150.0,0.0001128,2]
[420159165,1775736636307,-38608.42576967,0.00011281,2]
[420159166,1775736636317,-954.48364493,0.00011296,2]
[420159167,1775736636326,-509.31342005,0.00011305,2]
[420159168,1775736636335,-1209929.9491,0.00011306,2]
[420159169,1775736636344,-500.0,0.00011373,2]
[420159170,1775736636354,-33044.9118,0.00011381,2]
[420159171,1775736636364,-2913.2025,0.00011381,2]
[420159172,1775736636374,-57509.7425,0.00011381,2]
[420159173,1775736636384,-2070.7998187,0.00011381,2]
[420159174,1775736636394,-653.11021539,0.00011381,2]
[420159175,1775736636404,-12814.42767035,0.00011406,2]
[420159176,1775736636414,-1228.16427337,0.00011406,2]
[420159177,1775736636424,-693.0,0.0001146,2]
[420159178,1775736636434,-500.0,0.00011473,2]
[420159179,1775736636443,-500.0,0.00011473,2]
[420159180,1775736636453,-500.0,0.00011473,2]
[420159181,1775736636463,-200.0,0.00011474,2]
[420159182,1775736636473,-151.0,0.00011474,2]
[420159183,1775736636483,-151.0,0.00011474,2]
[420159184,1775736636493,-151.0,0.00011474,2]
[420159185,1775736636502,-151.0,0.00011474,2]
[420159186,1775736636512,-151.0,0.00011474,2]
[420159187,1775736636521,-1156.41848616,0.00011474,2]
[420159188,1775736636531,-151.0,0.00011474,2]
[420159189,1775736636541,-151.0,0.00011474,2]
[420159190,1775736636552,-320.23728243,0.00011506,2]
[420159191,1775736636561,-603.21151946,0.00011581,2]
[420159192,1775736636571,-150.0,0.000116,2]
[420159193,1775736636581,-150.0,0.00011664,2]
[420159194,1775736636590,-1000.0,0.00011681,2]
[420159195,1775736636599,-600.0,0.00011706,2]
[420159196,1775736636609,-600.0,0.00011706,2]
[420159197,1775736636618,-600.0,0.00011706,2]
[420159198,1775736636628,-600.0,0.00011706,2]
[420159199,1775736636638,-5000.0,0.00011706,2]
[420159200,1775736636648,-250.0,0.00011706,2]
[420159201,1775736636658,-400.0,0.00011726,2]
[420159202,1775736636667,-400.0,0.00011726,2]
[420159203,1775736636677,-278.42,0.00011726,2]
[420159204,1775736636687,-400.0,0.0001173,2]
[420159205,1775736636697,-400.0,0.0001173,2]
[420159206,1775736636706,-400.0,0.0001173,2]
[420159207,1775736636716,-400.0,0.0001173,2]
[420159208,1775736636726,-287.24,0.0001173,2]
[420159209,1775736636735,-500.0,0.0001173,2]
[420159210,1775736636744,-400.0,0.00011733,2]
[420159211,1775736636754,-400.0,0.00011733,2]
[420159212,1775736636764,-400.0,0.00011733,2]
[420159213,1775736636773,-400.0,0.00011733,2]
[420159214,1775736636783,-400.0,0.00011733,2]
[420159215,1775736636793,-400.0,0.00011733,2]
[420159216,1775736636802,-195.0,0.0001174,2]
[420159217,1775736636811,-195.0,0.0001174,2]
[420159218,1775736636821,-195.0,0.0001174,2]
[420159219,1775736636831,-195.0,0.0001174,2]
[420159220,1775736636840,-12388.82858841,0.00011744,2]
[420159221,1775736636850,-620.14001106,0.0001177,2]
[420159222,1775736636859,-500.0,0.00011862,2]
[420159223,1775736636869,-500.0,0.00011862,2]
[420159224,1775736636878,-500.0,0.00011862,2]
[420159225,1775736636888,-500.0,0.00011862,2]
[420159226,1775736636898,-500.0,0.00011862,2]
[420159227,1775736636907,-500.0,0.00011862,2]
[420159228,1775736636916,-500.0,0.00011862,2]
[420159229,1775736636926,-416.55077892,0.00011862,2]
[420159230,1775736636935,-12814.42767027,0.00011873,2]
[420159231,1775736636945,-161.19100432,0.00011921,2]
[420159232,1775736636955,-1680.0,0.00011988,2]
[420159233,1775736636964,-500.0,0.00012004,2]
[420159234,1775736636974,-2000.0,0.00012007,2]
[420159235,1775736636983,-1000.0,0.00012021,2]
[420159236,1775736636993,-826.84050534,0.00012021,2]
[420159237,1775736637003,-1000.0,0.00012021,2]
[420159238,1775736637012,-694.0091843,0.00012022,2]
[420159239,1775736637022,-12388.82858841,0.00012207,2]
[420159240,1775736637032,-500.0,0.00012278,2]
[420159241,1775736637041,-603.21151945,0.00012301,2]
[420159242,1775736637051,-12814.42767027,0.0001234,2]
[420159243,1775736637061,-255.0,0.0001234,2]
[420159244,1775736637071,-206.7,0.00012381,2]
[420159245,1775736637080,-475.3894655,0.00012552,2]
[420159246,1775736637090,-503.71619359,0.00012568,2]
[420159247,1775736637100,-1500.0,0.00012568,2]
[420159248,1775736637109,-154.06,0.00012573,2]
[420159249,1775736637119,-86282.6630574,0.00012581,2]
[420159250,1775736637128,-8968.6774219,0.00012581,2]
[420159251,1775736637139,-12388.82858841,0.00012671,2]
[420159252,1775736637148,-12814.42767027,0.00012807,2]
[420159253,1775736637158,-172.899,0.000129,2]
[420159254,1775736637168,-4618.51996454,0.00012999,2]
[420159255,1775736637178,-250.0,0.00013,2]
[420159256,1775736637187,-603.21151945,0.00013021,2]
[420159257,1775736637197,-503.0,0.0001311,2]
[420159258,1775736637207,-500.0,0.00013123,2]
[420159259,1775736637218,-12388.82858841,0.00013135,2]
[420159260,1775736637227,-2351.0,0.00013187,2]
[420159261,1775736637237,-3000.0,0.00013244,2]
[420159262,1775736637246,-12814.42767027,0.00013274,2]
[420159263,1775736637256,-2000.0,0.00013341,2]
[420159264,1775736637265,-250.0,0.00013344,2]
[420159265,1775736637275,-152.0,0.0001343,3]
[420159266,1775736637284,-331.0,0.00013502,2]
[420159267,1775736637294,-500.0,0.00013535,2]
[420159268,1775736637303,-500.0,0.00013535,2]
[420159269,1775736637313,-195.49379715,0.00013535,2]
[420159270,1775736637323,-12388.82858841,0.00013598,2]
[420159271,1775736637333,-1228.16427337,0.00013653,2]
[420159272,1775736637342,-613.57,0.00013698,2]
[420159273,1775736637352,-613.57,0.00013698,2]
[420159274,1775736637361,-613.57,0.00013698,2]
[420159275,1775736637370,-613.57,0.00013698,2]
[420159276,1775736637379,-613.57,0.00013698,2]
[420159277,1775736637388,-613.57,0.00013698,2]
[420159278,1775736637397,-613.57,0.00013698,2]
[420159279,1775736637407,-228.66639528,0.00013699,2]
[420159280,1775736637416,-3069.0,0.00013699,2]
[420159281,1775736637426,-150.0,0.00013699,2]
[420159282,1775736637436,-166.66,0.00013699,2]
[420159283,1775736637445,-1166.53,0.00013699,2]
[420159284,1775736637455,-500.0,0.00013699,2]
[420159285,1775736637464,-8032.32,0.000137,2]
[420159286,1775736637474,-8032.32,0.000137,2]
[420159287,1775736637484,-603.21151945,0.00013741,2]
[420159288,1775736637495,-12814.42767027,0.00013741,2]
[420159289,1775736637505,-1400.0,0.00013792,2]
[420159290,1775736637514,-1218.0,0.00013804,2]
[420159291,1775736637524,-926.0,0.00013804,2]
[420159292,1775736637534,-200.0,0.00013809,2]
[420159293,1775736637543,-150.0,0.00013809,2]
[420159294,1775736637552,-150.471,0.00013809,2]
[420159295,1775736637562,-151.0,0.00013809,2]
[420159296,1775736637571,-150.17,0.00013809,2]
[420159297,1775736637581,-191.321,0.00013809,2]
[420159298,1775736637590,-150.0,0.00013809,2]
[420159299,1775736637600,-150.0,0.00013809,2]
[420159300,1775736637609,-150.0,0.00013809,2]
[420159301,1775736637619,-150.0,0.00013809,2]
[420159302,1775736637628,-150.119,0.00013809,2]
[420159303,1775736637639,-150.0,0.00013809,2]
[420159304,1775736637649,-622.0,0.00013809,2]
[420159305,1775736637658,-3524.0,0.00013809,2]
[420159306,1775736637668,-1047.0,0.00013809,2]
[420159307,1775736637678,-150.0,0.00013809,2]
[420159308,1775736637688,-1264.0,0.00013809,2]
[420159309,1775736637697,-166.66,0.00013836,2]
[420159310,1775736637706,-177.5618893,0.00013913,5]
[420159311,1775736637716,-177.5618893,0.00013913,5]
[420159312,1775736637725,-160.0,0.00013962,7]
[420159313,1775736637735,-1574.480657,0.00013962,7]
[420159314,1775736637745,-2988.961314,0.00013962,7]
[420159315,1775736637755,-150.0,0.00013973,2]
[420159316,1775736637764,-166.66,0.00013973,2]
[420159317,1775736637774,-500.0,0.00014,2]
[420159318,1775736637783,-200.404802,0.00014,2]
[420159319,1775736637792,-503.0,0.00014052,2]
[420159320,1775736637802,-12388.82858841,0.00014062,2]
[420159321,1775736637812,-208.488557,0.00014074,2]
[420159322,1775736637822,-160.0,0.00014074,7]
[420159323,1775736637831,-741.46844,0.00014074,7]
[420159324,1775736637840,-1322.936881,0.00014074,7]
[420159325,1775736637849,-166.66,0.0001411,2]
[420159326,1775736637860,-1573.0,0.0001411,2]
[420159327,1775736637869,-2001.1824294,0.00014179,2]
[420159328,1775736637878,-160.0,0.00014194,2]
[420159329,1775736637888,-12814.42767027,0.00014208,2]
[420159330,1775736637898,-160.0,0.00014214,2]
[420159331,1775736637907,-1879.346622,0.00014214,2]
[420159332,1775736637916,-3598.693245,0.00014214,2]
[420159333,1775736637926,-160.0,0.00014214,7]
[420159334,1775736637935,-330.646479,0.00014214,7]
[420159335,1775736637945,-501.292959,0.00014214,7]
[420159336,1775736637955,-160.0,0.00014214,7]
[420159337,1775736637964,-769.536633,0.00014214,7]
[420159338,1775736637973,-1379.073266,0.00014214,7]
[420159339,1775736637982,-19252.264426,0.00014235,2]
[420159340,1775736637992,-160.0,0.00014235,2]
[420159341,1775736638002,-577.714434,0.00014235,2]
[420159342,1775736638011,-995.428869,0.00014235,2]
[420159343,1775736638021,-161.74,0.00014243,2]
[420159344,1775736638030,-166.66,0.00014247,2]
[420159345,1775736638040,-150.0,0.00014247,2]
[420159346,1775736638050,-1000.0,0.00014247,2]
[420159347,1775736638060,-199.2938,0.000143,2]
[420159348,1775736638070,-3000.0,0.00014361,2]
[420159349,1775736638079,-3000.0,0.00014361,2]
[420159350,1775736638089,-3000.0,0.00014361,2]
[420159351,1775736638098,-3000.0,0.00014361,2]
[420159352,1775736638108,-3000.0,0.00014361,2]
[420159353,1775736638117,-3000.0,0.00014361,2]
[420159354,1775736638127,-3000.0,0.00014361,2]
[420159355,1775736638136,-3000.0,0.00014361,2]
[420159356,1775736638146,-3000.0,0.00014361,2]
[420159357,1775736638155,-3000.0,0.00014361,2]
[420159358,1775736638164,-3000.0,0.00014361,2]
[420159359,1775736638174,-1208.75,0.00014361,2]
[420159360,1775736638183,-166.66,0.00014384,2]
[420159361,1775736638193,-1166.53,0.00014384,2]
[420159362,1775736638203,-1572.0,0.000144,2]
[420159363,1775736638212,-1573.0,0.00014441,2]
[420159364,1775736638222,-603.21151945,0.0001446,2]
[420159365,1775736638231,-613.57,0.00014504,2]
[420159366,1775736638245,-150.99,0.00014504,2]
[420159367,1775736638254,-150.99,0.00014504,2]
[420159368,1775736638264,-3677.74,0.00014504,2]
[420159369,1775736638273,-356.73,0.00014504,2]
[420159370,1775736638283,-1481.75,0.00014504,2]
[420159371,1775736638292,-299.99,0.00014504,2]
[420159372,1775736638303,-9999.99,0.00014504,2]
[420159373,1775736638313,-770.25,0.00014504,2]
[420159374,1775736638323,-3292.0,0.00014505,2]
[420159375,1775736638332,-500.0,0.00014521,2]
[420159376,1775736638342,-12388.82858841,0.00014526,2]
[420159377,1775736638352,-446.5241559,0.00014536,2]
[420159378,1775736638362,-197.16015672,0.00014566,2]
[420159379,1775736638372,-619.54048317,0.00014566,2]
[420159380,1775736638382,-206.7,0.00014566,2]
[420159381,1775736638391,-4295.7608446,0.00014604,2]
[420159382,1775736638400,-3000.0,0.00014614,2]
[420159383,1775736638410,-578.36645902,0.00014645,2]
[420159384,1775736638420,-2147.019078,0.0001466,7]
[420159385,1775736638430,-2000.0,0.00014675,2]
[420159386,1775736638439,-12814.42767027,0.00014675,2]
[420159387,1775736638449,-500.0,0.0001471,2]
[420159388,1775736638458,-500.0,0.0001471,2]
[420159389,1775736638467,-500.0,0.0001471,2]
[420159390,1775736638477,-500.0,0.0001471,2]
[420159391,1775736638487,-500.0,0.0001471,2]
[420159392,1775736638497,-500.0,0.0001471,2]
[420159393,1775736638507,-500.0,0.0001471,2]
[420159394,1775736638516,-500.0,0.0001471,2]
[420159395,1775736638527,-500.0,0.0001471,2]
[420159396,1775736638536,-500.0,0.0001471,2]
[420159397,1775736638545,-500.0,0.0001471,2]
[420159398,1775736638555,-500.0,0.0001471,2]
[420159399,1775736638564,-322.96,0.0001471,2]
[420159400,1775736638574,-500.0,0.0001471,2]
[420159401,1775736638584,-500.0,0.0001471,2]
[420159402,1775736638594,-500.0,0.0001471,2]
[420159403,1775736638603,-241.27,0.0001471,2]
[420159404,1775736638613,-9982.72689724,0.00014775,2]
[420159405,1775736638622,-5000.0,0.00014775,2]
[420159406,1775736638631,-5000.0,0.00014775,2]
[420159407,1775736638641,-1011.093328,0.00014777,7]
[420159408,1775736638650,-1500.0,0.00014795,2]
[420159409,1775736638660,-2000.0,0.0001481,2]
[420159410,1775736638669,-337.0014013,0.00014815,2]
[420159411,1775736638679,-578.20924308,0.0001484,2]
[420159412,1775736638689,-174.61919141,0.0001484,2]
[420159413,1775736638698,-1191.11104075,0.0001484,2]
[420159414,1775736638707,-200.0,0.0001484,2]
[420159415,1775736638716,-7965.41053268,0.0001484,2]
[420159416,1775736638726,-601.3376128,0.0001484,2]
[420159417,1775736638735,-151.0,0.0001484,2]
[420159418,1775736638745,-151.0,0.0001484,2]
[420159419,1775736638755,-151.0,0.0001484,2]
[420159420,1775736638764,-151.0,0.0001484,2]
[420159421,1775736638773,-157.93972627,0.0001484,2]
[420159422,1775736638783,-500.0,0.0001484,2]
[420159423,1775736638791,-743.50770149,0.0001484,2]
[420159424,1775736638801,-151.0,0.0001484,2]
[420159425,1775736638811,-174.61919141,0.0001484,2]
[420159426,1775736638822,-205.09085742,0.0001484,2]
[420159427,1775736638831,-1500.0,0.0001484,2]
[420159428,1775736638840,-1500.0,0.0001484,2]
[420159429,1775736638850,-1500.0,0.0001484,2]
[420159430,1775736638859,-1500.0,0.0001484,2]
[420159431,1775736638869,-1500.0,0.0001484,2]
[420159432,1775736638878,-1500.0,0.0001484,2]
[420159433,1775736638888,-1500.0,0.0001484,2]
[420159434,1775736638897,-1500.0,0.0001484,2]
[420159435,1775736638907,-170.0,0.0001484,2]
[420159436,1775736638916,-170.0,0.0001484,2]
[420159437,1775736638926,-170.0,0.0001484,2]
[420159438,1775736638935,-170.0,0.0001484,2]
[420159439,1775736638944,-170.0,0.0001484,2]
[420159440,1775736638954,-170.0,0.0001484,2]
[420159441,1775736638963,-170.0,0.0001484,2]
[420159442,1775736638971,-170.0,0.0001484,2]
[420159443,1775736638981,-170.0,0.0001484,2]
[420159444,1775736638991,-1500.0,0.0001484,2]
[420159445,1775736639000,-170.0,0.0001484,2]
[420159446,1775736639010,-1500.0,0.0001484,2]
[420159447,1775736639020,-1500.0,0.0001484,2]
[420159448,1775736639030,-303.98027082,0.0001484,2]
[420159449,1775736639039,-170.0,0.0001484,2]
[420159450,1775736639048,-1500.0,0.0001484,2]
[420159451,1775736639058,-170.0,0.0001484,2]
[420159452,1775736639068,-1500.0,0.0001484,2]
[420159453,1775736639077,-170.0,0.0001484,2]
[420159454,1775736639087,-1500.0,0.0001484,2]
[420159455,1775736639096,-578.20924308,0.0001484,2]
[420159456,1775736639106,-170.0,0.0001484,2]
[420159457,1775736639116,-1500.0,0.0001484,2]
[420159458,1775736639126,-170.0,0.0001484,2]
[420159459,1775736639135,-1500.0,0.0001484,2]
[420159460,1775736639144,-1500.0,0.0001484,2]
[420159461,1775736639155,-1500.0,0.0001484,2]
[420159462,1775736639164,-1500.0,0.0001484,2]
[420159463,1775736639173,-174.61919141,0.0001484,2]
[420159464,1775736639183,-1500.0,0.0001484,2]
[420159465,1775736639192,-1500.0,0.0001484,2]
[420159466,1775736639201,-279.9045709,0.0001484,2]
[420159467,1775736639211,-151.0,0.0001484,2]
[420159468,1775736639221,-156.587,0.0001484,2]
[420159469,1775736639230,-195.53699309,0.0001484,2]
[420159470,1775736639239,-5888.0,0.00014852,2]
[420159471,1775736639249,-421.15486898,0.00014863,2]
[420159472,1775736639258,-554.42870995,0.00014872,2]
[420159473,1775736639269,-1600.41348263,0.00014872,2]
[420159474,1775736639278,-350.0,0.00014873,2]
[420159475,1775736639287,-8260.13072239,0.00014895,2]
[420159476,1775736639297,-500.0,0.00014895,2]
[420159478,1775736639306,-151.0,0.00014895,2]
[420159480,1775736639316,-900.0,0.000149,5]
[420159482,1775736639325,-154.06,0.00014903,2]
[420159484,1775736639334,-197.61963424,0.00014905,2]
[420159486,1775736639344,-219.75344189,0.00014905,2]
[420159488,1775736639353,-2000.0,0.0001491,2]
[420159490,1775736639362,-151.873123,0.00014925,2]
[420159492,1775736639372,-2562.745394,0.00014925,2]
[420159494,1775736639382,-676.322344,0.00014925,7]
[420159496,1775736639392,-1049.368136,0.00014925,7]
[420159498,1775736639401,-350.0,0.00014933,2]
[420159500,1775736639411,-2761.22,0.00014942,2]
[420159502,1775736639421,-1181.688616,0.00014947,2]
[420159503,1775736639431,-8565.75555911,0.0001495,2]
[420159505,1775736639440,-500.0,0.0001495,2]
[420159507,1775736639450,-151.0,0.0001495,2]
[420159510,1775736639461,-229.32,0.00014957,2]
[420159512,1775736639470,-500.0,0.00014964,2]
[420159514,1775736639480,-500.0,0.00014964,2]
[420159515,1775736639490,-500.0,0.00014964,2]
[420159517,1775736639499,-502.06502755,0.00014964,2]
[420159519,1775736639509,-725.67,0.00014964,2]
[420159521,1775736639519,-500.0,0.00014964,2]
[420159523,1775736639528,-500.0,0.00014964,2]
[420159525,1775736639538,-538.72,0.00014964,2]
[420159527,1775736639547,-500.0,0.00014964,2]
[420159529,1775736639556,-500.0,0.00014964,2]
[420159531,1775736639566,-579.29118204,0.00014964,2]
[420159533,1775736639576,-500.0,0.00014964,2]
[420159535,1775736639585,-500.0,0.00014964,2]
[420159537,1775736639595,-500.0,0.00014964,2]
[420159539,1775736639605,-500.0,0.00014964,2]
[420159541,1775736639614,-500.0,0.00014964,2]
[420159543,1775736639624,-307.8078156,0.00014964,2]
[420159545,1775736639633,-500.0,0.00014964,2]
[420159547,1775736639643,-612.52,0.00014964,2]
[420159549,1775736639652,-500.0,0.00014964,2]
[420159551,1775736639662,-500.0,0.00014964,2]
[420159553,1775736639671,-502.11524689,0.00014964,2]
[420159555,1775736639680,-313.47923887,0.00014964,2]
[420159557,1775736639690,-500.0,0.00014964,2]
[420159559,1775736639699,-500.0,0.00014964,2]
[420159561,1775736639709,-500.0,0.00014964,2]
[420159563,1775736639719,-500.0,0.00014964,2]
[420159565,1775736639728,-500.0,0.00014964,2]
[420159567,1775736639738,-500.0,0.00014964,2]
[420159568,1775736639748,-500.0,0.00014964,2]
[420159569,1775736639757,-500.0,0.00014964,2]
[420159570,1775736639767,-500.0,0.00014964,2]
[420159571,1775736639777,-469.56366676,0.00014964,2]
[420159572,1775736639787,-500.0,0.00014964,2]
[420159573,1775736639796,-500.0,0.00014964,2]
[420159574,1775736639806,-511.5,0.00014964,2]
[420159575,1775736639815,-4761.13,0.00014964,2]
[420159576,1775736639824,-500.0,0.00014964,2]
[420159577,1775736639834,-500.0,0.00014964,2]
[420159578,1775736639844,-12388.82858841,0.00014989,2]
[420159579,1775736639854,-503.0,0.00014994,3]
[420159580,1775736639863,-300.0,0.00015,2]
[420159581,1775736639873,-739.0,0.00015,2]
[420159582,1775736639882,-220.0,0.00015,2]
[420159583,1775736639892,-840.05,0.00015,2]
[420159584,1775736639902,-427.38844667,0.00015,2]
[420159585,1775736639912,-162.0,0.00015,2]
[420159586,1775736639922,-2290.21051138,0.00015,2]
[420159587,1775736639931,-613.57,0.00015002,2]
[420159588,1775736639940,-613.57,0.00015002,2]
[420159589,1775736639950,-666.0,0.00015002,2]
[420159590,1775736639959,-1809.7429871,0.00015003,2]
[420159591,1775736639968,-76763.6696036,0.00015003,2]
[420159592,1775736639978,-39893.90247478,0.00015003,2]
[420159593,1775736639995,-692.85600503,0.00015003,2]
[420159594,1775736640007,-1184.19781571,0.00015003,2]
[420159595,1775736640018,-43580.66058098,0.00015003,2]
[420159596,1775736640027,-867.090923,0.00015003,2]
[420159597,1775736640037,-236.309977,0.00015003,2]
[420159598,1775736640046,-867.090923,0.00015003,2]
[420159599,1775736640055,-236.309977,0.00015003,2]
[420159600,1775736640065,-236.309977,0.00015003,2]
[420159601,1775736640075,-361.59191139,0.00015003,2]
[420159602,1775736640087,-505.49901161,0.00015003,2]
[420159603,1775736640096,-236.309977,0.00015003,2]
[420159604,1775736640106,-867.090923,0.00015003,2]
[420159605,1775736640115,-2531.466401,0.00015003,2]
[420159606,1775736640126,-2531.466401,0.00015003,2]